fUST/lending_fUST_20251212
["ID","MTS","AMOUNT","RATE_DAILY","PERIOD"]
[398284789,1765491042964,-191.74649553,0.00012876,2]
[398284790,1765491042974,-1642.34,0.00012876,2]
[398284791,1765491042984,-500.0,0.00012876,2]
[398284792,1765491042993,-500.0,0.00012876,2]
[398284793,1765491043003,-500.0,0.00012876,2]
[398284794,1765491043013,-500.0,0.00012876,2]
[398284795,1765491043022,-500.0,0.00012876,2]
[398284796,1765491043032,-500.0,0.00012876,2]
[398284797,1765491043042,-500.0,0.00012876,2]
[398284798,1765491043051,-500.0,0.00012876,2]
[398284799,1765491043061,-500.0,0.00012876,2]
[398284800,1765491043070,-500.0,0.00012876,2]
[398284801,1765491043079,-500.0,0.00012876,2]
[398284802,1765491043088,-500.0,0.00012876,2]
[398284803,1765491043098,-500.0,0.00012876,2]
[398284804,1765491043107,-500.0,0.00012876,2]
[398284805,1765491043117,-500.0,0.00012876,2]
[398284806,1765491043126,-500.0,0.00012876,2]
[398284808,1765491043136,-500.0,0.00012876,2]
[398284810,1765491043145,-500.0,0.00012876,2]
[398284812,1765491043154,-1285.23,0.00012876,2]
[398284813,1765491043164,-500.0,0.00012876,2]
[398284815,1765491043173,-534.23,0.00012876,2]
[398284817,1765491043182,-500.0,0.00012876,2]
[398284819,1765491043192,-500.0,0.00012876,2]
[398284820,1765491043201,-607.27,0.00012876,2]
[398284822,1765491043210,-500.0,0.00012876,2]
[398284824,1765491043220,-500.0,0.00012876,2]
[398284826,1765491043229,-500.0,0.00012876,2]
[398284828,1765491043238,-500.0,0.00012876,2]
[398284829,1765491043247,-583.56184371,0.00012876,2]
[398284831,1765491043256,-500.0,0.00012876,2]
[398284833,1765491043266,-500.0,0.00012876,2]
[398284835,1765491043276,-500.0,0.00012876,2]
[398284837,1765491043286,-577.2,0.00012876,2]
[398284839,1765491043295,-500.0,0.00012876,2]
[398284841,1765491043305,-500.0,0.00012876,2]
[398284842,1765491043314,-500.0,0.00012876,2]
[398284844,1765491043324,-500.0,0.00012876,2]
[398284846,1765491043334,-500.0,0.00012876,2]
[398284848,1765491043343,-500.0,0.00012876,2]
[398284850,1765491043352,-500.0,0.00012876,2]
[398284851,1765491043362,-500.0,0.00012876,2]
[398284853,1765491043371,-500.0,0.00012876,2]
[398284855,1765491043381,-500.0,0.00012876,2]
[398284857,1765491043393,-565.22,0.00012876,2]
[398284859,1765491043402,-500.0,0.00012876,2]
[398284861,1765491043413,-500.0,0.00012876,2]
[398284863,1765491043423,-500.0,0.00012876,2]
[398284865,1765491043432,-896.09,0.00012876,2]
[398284866,1765491043442,-500.0,0.00012876,2]
[398284868,1765491043451,-500.0,0.00012876,2]
[398284870,1765491043461,-500.0,0.00012876,2]
[398284872,1765491043471,-500.0,0.00012876,2]
[398284874,1765491043480,-500.0,0.00012876,2]
[398284876,1765491043489,-500.0,0.00012876,2]
[398284878,1765491043498,-500.0,0.00012876,2]
[398284879,1765491043507,-500.0,0.00012876,2]
[398284881,1765491043517,-500.0,0.00012876,2]
[398284883,1765491043527,-500.0,0.00012876,2]
[398284885,1765491043536,-500.0,0.00012876,2]
[398284887,1765491043546,-500.0,0.00012876,2]
[398284889,1765491043556,-500.0,0.00012876,2]
[398284890,1765491043565,-500.0,0.00012876,2]
[398284892,1765491043574,-527.45,0.00012876,2]
[398284894,1765491043583,-500.0,0.00012876,2]
[398284896,1765491043592,-673.31,0.00012876,2]
[398284898,1765491043602,-500.0,0.00012876,2]
[398284900,1765491043611,-500.0,0.00012876,2]
[398284902,1765491043621,-500.0,0.00012876,2]
[398284903,1765491043630,-500.0,0.00012876,2]
[398284905,1765491043640,-558.7,0.00012876,2]
[398284907,1765491043650,-500.0,0.00012876,2]
[398284909,1765491043659,-500.0,0.00012876,2]
[398284911,1765491043669,-500.0,0.00012876,2]
[398284912,1765491043679,-500.0,0.00012876,2]
[398284914,1765491043689,-500.0,0.00012876,2]
[398284916,1765491043699,-577.5,0.00012876,2]
[398284918,1765491043709,-500.0,0.00012876,2]
[398284920,1765491043719,-500.0,0.00012876,2]
[398284922,1765491043728,-1296.07,0.00012876,2]
[398284924,1765491043738,-500.0,0.00012876,2]
[398284926,1765491043748,-500.0,0.00012876,2]
[398284927,1765491043758,-863.48,0.00012876,2]
[398284929,1765491043771,-500.0,0.00012876,2]
[398284931,1765491043780,-838.73,0.00012876,2]
[398284933,1765491043791,-500.0,0.00012876,2]
[398284935,1765491043800,-500.0,0.00012876,2]
[398284937,1765491043810,-500.0,0.00012876,2]
[398284938,1765491043820,-500.0,0.00012876,2]
[398284940,1765491043830,-500.0,0.00012876,2]
[398284942,1765491043841,-500.0,0.00012876,2]
[398284944,1765491043850,-493.2732976,0.00012876,2]
[398284946,1765491043859,-500.0,0.00012876,2]
[398284947,1765491043867,-523.5,0.00012876,2]
[398284949,1765491043876,-500.0,0.00012876,2]
[398284951,1765491043886,-500.0,0.00012876,2]
[398284953,1765491043895,-688.16,0.00012876,2]
[398284955,1765491043904,-500.0,0.00012876,2]
[398284957,1765491043913,-500.0,0.00012876,2]
[398284958,1765491043923,-500.0,0.00012876,2]
[398284960,1765491043932,-500.0,0.00012876,2]
[398284962,1765491043942,-500.0,0.00012876,2]
[398284964,1765491043951,-500.0,0.00012876,2]
[398284966,1765491043960,-317.37503335,0.00012876,2]
[398284968,1765491043969,-500.0,0.00012876,2]
[398284969,1765491043979,-1755.42,0.00012876,2]
[398284971,1765491043988,-3134.98,0.00012876,2]
[398284973,1765491043997,-500.0,0.00012876,2]
[398284975,1765491044007,-818.38,0.00012876,2]
[398284977,1765491044016,-500.0,0.00012876,2]
[398284979,1765491044026,-500.0,0.00012876,2]
[398284981,1765491044035,-500.0,0.00012876,2]
[398284983,1765491044044,-500.0,0.00012876,2]
[398284985,1765491044057,-500.0,0.00012876,2]
[398284987,1765491044066,-686.06,0.00012876,2]
[398284989,1765491044075,-1030.05,0.00012876,2]
[398284990,1765491044084,-500.0,0.00012876,2]
[398284992,1765491044094,-459.65272697,0.00012876,2]
[398284994,1765491044104,-500.0,0.00012876,2]
[398284996,1765491044113,-500.0,0.00012876,2]
[398284998,1765491044123,-500.0,0.00012876,2]
[398284999,1765491044132,-500.0,0.00012876,2]
[398285001,1765491044142,-561.09,0.00012876,2]
[398285003,1765491044153,-500.0,0.00012876,2]
[398285005,1765491044162,-500.0,0.00012876,2]
[398285007,1765491044172,-1451.63,0.00012876,2]
[398285009,1765491044182,-500.0,0.00012876,2]
[398285011,1765491044192,-795.02,0.00012876,2]
[398285013,1765491044202,-500.0,0.00012876,2]
[398285015,1765491044211,-500.0,0.00012876,2]
[398285017,1765491044221,-622.46,0.00012876,2]
[398285019,1765491044230,-500.0,0.00012876,2]
[398285021,1765491044239,-500.0,0.00012876,2]
[398285023,1765491044248,-500.0,0.00012876,2]
[398285025,1765491044258,-500.0,0.00012876,2]
[398285027,1765491044267,-500.0,0.00012876,2]
[398285028,1765491044277,-1160.09,0.00012876,2]
[398285030,1765491044287,-472.84306335,0.00012876,2]
[398285032,1765491044296,-500.0,0.00012876,2]
[398285034,1765491044306,-500.0,0.00012876,2]
[398285036,1765491044316,-500.0,0.00012876,2]
[398285038,1765491044326,-500.0,0.00012876,2]
[398285040,1765491044335,-759.53,0.00012876,2]
[398285042,1765491044344,-500.0,0.00012876,2]
[398285043,1765491044353,-500.0,0.00012876,2]
[398285045,1765491044362,-754.33,0.00012876,2]
[398285047,1765491044371,-500.0,0.00012876,2]
[398285049,1765491044381,-571.26,0.00012876,2]
[398285051,1765491044390,-319.27449274,0.00012876,2]
[398285053,1765491044399,-500.0,0.00012876,2]
[398285055,1765491044408,-500.0,0.00012876,2]
[398285057,1765491044417,-500.0,0.00012876,2]
[398285059,1765491044427,-500.0,0.00012876,2]
[398285060,1765491044436,-500.0,0.00012876,2]
[398285062,1765491044445,-1048.47,0.00012876,2]
[398285064,1765491044454,-500.0,0.00012876,2]
[398285066,1765491044464,-563.96,0.00012876,2]
[398285068,1765491044473,-500.0,0.00012876,2]
[398285070,1765491044482,-500.0,0.00012876,2]
[398285072,1765491044491,-500.0,0.00012876,2]
[398285074,1765491044500,-1039.07,0.00012876,2]
[398285076,1765491044510,-947.85,0.00012876,2]
[398285078,1765491044519,-512.32,0.00012876,2]
[398285080,1765491044529,-500.0,0.00012876,2]
[398285081,1765491044539,-813.08,0.00012876,2]
[398285083,1765491044548,-897.93,0.00012876,2]
[398285085,1765491044557,-500.0,0.00012876,2]
[398285087,1765491044567,-728.62,0.00012876,2]
[398285089,1765491044576,-2323.07,0.00012876,2]
[398285091,1765491044586,-500.0,0.00012876,2]
[398285093,1765491044596,-500.0,0.00012876,2]
[398285095,1765491044605,-500.0,0.00012876,2]
[398285097,1765491044615,-3000.35,0.00012876,2]
[398285099,1765491044624,-500.0,0.00012876,2]
[398285101,1765491044634,-500.0,0.00012876,2]
[398285103,1765491044643,-500.0,0.00012876,2]
[398285105,1765491044652,-586.05120578,0.00012876,2]
[398285107,1765491044661,-542.18,0.00012876,2]
[398285109,1765491044671,-500.0,0.00012876,2]
[398285111,1765491044680,-500.3572852,0.00012876,2]
[398285112,1765491044690,-500.0,0.00012876,2]
[398285114,1765491044700,-170.14,0.00012876,2]
[398285116,1765491044710,-866.89,0.00012876,2]
[398285118,1765491044719,-500.0,0.00012876,2]
[398285120,1765491044729,-500.0,0.00012876,2]
[398285122,1765491044739,-500.0,0.00012876,2]
[398285124,1765491044748,-1019.28,0.00012876,2]
[398285126,1765491044758,-3252.09,0.00012876,2]
[398285128,1765491044772,-500.0,0.00012876,2]
[398285130,1765491044782,-500.0,0.00012876,2]
[398285132,1765491044792,-500.0,0.00012876,2]
[398285134,1765491044802,-500.0,0.00012876,2]
[398285136,1765491044811,-1921.4,0.00012876,2]
[398285138,1765491044821,-500.0,0.00012876,2]
[398285140,1765491044831,-500.0,0.00012876,2]
[398285142,1765491044842,-559.56,0.00012876,2]
[398285144,1765491044851,-500.0,0.00012876,2]
[398285146,1765491044861,-736.04,0.00012876,2]
[398285147,1765491044870,-500.0,0.00012876,2]
[398285149,1765491044879,-500.0,0.00012876,2]
[398285151,1765491044889,-500.0,0.00012876,2]
[398285153,1765491044899,-500.0,0.00012876,2]
[398285155,1765491044908,-628.5,0.00012876,2]
[398285157,1765491044917,-1231.35,0.00012876,2]
[398285159,1765491044926,-500.0,0.00012876,2]
[398285161,1765491044935,-500.0,0.00012876,2]
[398285163,1765491044944,-611.24,0.00012876,2]
[398285164,1765491044953,-500.0,0.00012876,2]
[398285166,1765491044963,-500.0,0.00012876,2]
[398285168,1765491044972,-500.0,0.00012876,2]
[398285170,1765491044981,-500.0,0.00012876,2]
[398285172,1765491044991,-571.89,0.00012876,2]
[398285174,1765491045000,-500.0,0.00012876,2]
[398285176,1765491045009,-500.0,0.00012876,2]
[398285178,1765491045018,-500.0,0.00012876,2]
[398285180,1765491045027,-6908.878648,0.00012876,2]
[398285181,1765491045036,-500.0,0.00012876,2]
[398285183,1765491045045,-868.73,0.00012876,2]
[398285185,1765491045055,-500.0,0.00012876,2]
[398285187,1765491045064,-500.0,0.00012876,2]
[398285189,1765491045073,-563.54,0.00012876,2]
[398285191,1765491045083,-500.0,0.00012876,2]
[398285193,1765491045092,-500.0,0.00012876,2]
[398285195,1765491045102,-5015.56,0.00012876,2]
[398285214,1765491045282,-500.0,0.00012876,2]
[398285216,1765491045292,-239.81266228,0.00012876,2]
[398285218,1765491045301,-500.0,0.00012876,2]
[398285220,1765491045310,-500.0,0.00012876,2]
[398285221,1765491045319,-500.0,0.00012876,2]
[398285223,1765491045328,-500.0,0.00012876,2]
[398285225,1765491045338,-899.43,0.00012876,2]
[398285227,1765491045348,-500.0,0.00012876,2]
[398285229,1765491045357,-581.02,0.00012876,2]
[398285231,1765491045367,-755.72,0.00012876,2]
[398285233,1765491045377,-663.49,0.00012876,2]
[398285235,1765491045386,-500.0,0.00012876,2]
[398285237,1765491045396,-989.01,0.00012876,2]
[398285239,1765491045405,-500.0,0.00012876,2]
[398285241,1765491045413,-2160.19,0.00012876,2]
[398285243,1765491045423,-10205.12,0.00012876,2]
[398285245,1765491045432,-500.0,0.00012876,2]
[398285247,1765491045441,-911.49,0.00012876,2]
[398285248,1765491045449,-500.0,0.00012876,2]
[398285250,1765491045458,-500.0,0.00012876,2]
[398285252,1765491045468,-500.0,0.00012876,2]
[398285254,1765491045477,-1655.06,0.00012876,2]
[398285256,1765491045486,-500.0,0.00012876,2]
[398285258,1765491045495,-7298.25,0.00012876,2]
[398285259,1765491045504,-500.0,0.00012876,2]
[398285260,1765491045514,-1376.34,0.00012876,2]
[398285261,1765491045523,-500.0,0.00012876,2]
[398285262,1765491045532,-500.0,0.00012876,2]
[398285263,1765491045541,-662.02,0.00012876,2]
[398285264,1765491045550,-500.0,0.00012876,2]
[398285265,1765491045560,-500.0,0.00012876,2]
[398285266,1765491045569,-500.0,0.00012876,2]
[398285267,1765491045579,-1087.18,0.00012876,2]
[398285268,1765491045589,-500.0,0.00012876,2]
[398285269,1765491045598,-500.0,0.00012876,2]
[398285270,1765491045608,-500.0,0.00012876,2]
[398285271,1765491045618,-611.32701245,0.00012876,2]
[398285272,1765491045627,-4759.15,0.00012876,2]
[398285273,1765491045637,-1015.81,0.00012876,2]
[398285274,1765491045647,-681.56,0.00012876,2]
[398285275,1765491045656,-500.0,0.00012876,2]
[398285276,1765491045666,-500.0,0.00012876,2]
[398285277,1765491045676,-620.4,0.00012876,2]
[398285278,1765491045685,-559.66,0.00012876,2]
[398285279,1765491045695,-500.0,0.00012876,2]
[398285280,1765491045704,-737.1,0.00012876,2]
[398285281,1765491045714,-500.0,0.00012876,2]
[398285282,1765491045724,-500.0,0.00012876,2]
[398285283,1765491045733,-10960.99,0.00012876,2]
[398285284,1765491045743,-500.0,0.00012876,2]
[398285285,1765491045753,-1235.62,0.00012876,2]
[398285286,1765491045766,-500.0,0.00012876,2]
[398285288,1765491045777,-609.68,0.00012876,2]
[398285290,1765491045787,-1000.15,0.00012876,2]
[398285292,1765491045797,-500.0,0.00012876,2]
[398285294,1765491045807,-500.0,0.00012876,2]
[398285296,1765491045817,-993.89,0.00012876,2]
[398285298,1765491045827,-901.8,0.00012876,2]
[398285300,1765491045838,-4579.29,0.00012876,2]
[398285302,1765491045848,-500.0,0.00012876,2]
[398285304,1765491045858,-652.78,0.00012876,2]
[398285306,1765491045867,-500.0,0.00012876,2]
[398285308,1765491045876,-1323.53,0.00012876,2]
[398285310,1765491045886,-500.0,0.00012876,2]
[398285312,1765491045895,-500.0,0.00012876,2]
[398285314,1765491045904,-503.05,0.00012876,2]
[398285316,1765491045913,-1352.81,0.00012876,2]
[398285318,1765491045923,-500.0,0.00012876,2]
[398285320,1765491045932,-2040.63,0.00012876,2]
[398285322,1765491045941,-5393.14,0.00012876,2]
[398285324,1765491045950,-500.0,0.00012876,2]
[398285326,1765491045959,-2209.61,0.00012876,2]
[398285328,1765491045969,-500.0,0.00012876,2]
[398285330,1765491045978,-500.0,0.00012876,2]
[398285332,1765491045987,-500.0,0.00012876,2]
[398285333,1765491045996,-500.0,0.00012876,2]
[398285336,1765491046006,-500.0,0.00012876,2]
[398285337,1765491046015,-849.87,0.00012876,2]
[398285339,1765491046025,-2302.959549,0.00012876,2]
[398285341,1765491046035,-500.0,0.00012876,2]
[398285342,1765491046043,-404.76075115,0.00012876,2]
[398285343,1765491046052,-1257.67,0.00012876,2]
[398285345,1765491046062,-10412.18,0.00012876,2]
[398285347,1765491046071,-695.64,0.00012876,2]
[398285348,1765491046081,-500.0,0.00012876,2]
[398285349,1765491046090,-8149.72,0.00012876,2]
[398285350,1765491046100,-704.78,0.00012876,2]
[398285351,1765491046109,-516.1,0.00012876,2]
[398285352,1765491046121,-500.0,0.00012876,2]
[398285353,1765491046132,-500.0,0.00012876,2]
[398285354,1765491046142,-622.21,0.00012876,2]
[398285356,1765491046151,-500.0,0.00012876,2]
[398285358,1765491046160,-500.0,0.00012876,2]
[398285360,1765491046169,-500.0,0.00012876,2]
[398285362,1765491046179,-1309.33,0.00012876,2]
[398285364,1765491046189,-501.41,0.00012876,2]
[398285366,1765491046199,-1136.35,0.00012876,2]
[398285368,1765491046209,-850.69,0.00012876,2]
[398285369,1765491046219,-500.0,0.00012876,2]
[398285370,1765491046229,-500.0,0.00012876,2]
[398285371,1765491046239,-6363.01,0.00012876,2]
[398285372,1765491046253,-500.0,0.00012876,2]
[398285373,1765491046263,-500.0,0.00012876,2]
[398285374,1765491046273,-743.42,0.00012876,2]
[398285375,1765491046284,-1968.14,0.00012876,2]
[398285377,1765491046294,-500.0,0.00012876,2]
[398285379,1765491046304,-2886.13,0.00012876,2]
[398285381,1765491046313,-500.0,0.00012876,2]
[398285383,1765491046323,-5172.69,0.00012876,2]
[398285384,1765491046334,-500.0,0.00012876,2]
[398285386,1765491046344,-500.0,0.00012876,2]
[398285388,1765491046354,-509.1,0.00012876,2]
[398285390,1765491046363,-500.0,0.00012876,2]
[398285392,1765491046373,-500.0,0.00012876,2]
[398285393,1765491046382,-500.0,0.00012876,2]
[398285395,1765491046395,-1208.74,0.00012876,2]
[398285396,1765491046405,-768.92,0.00012876,2]
[398285397,1765491046414,-1240.17,0.00012876,2]
[398285398,1765491046424,-912.89,0.00012876,2]
[398285399,1765491046434,-500.0,0.00012876,2]
[398285400,1765491046443,-863.44,0.00012876,2]
[398285401,1765491046452,-500.0,0.00012876,2]
[398285402,1765491046462,-500.0,0.00012876,2]
[398285403,1765491046471,-11407.6,0.00012876,2]
[398285404,1765491046481,-1196.58,0.00012876,2]
[398285405,1765491046490,-500.0,0.00012876,2]
[398285406,1765491046500,-500.0,0.00012876,2]
[398285407,1765491046510,-500.0,0.00012876,2]
[398285408,1765491046519,-500.0,0.00012876,2]
[398285409,1765491046529,-500.0,0.00012876,2]
[398285410,1765491046539,-500.0,0.00012876,2]
[398285411,1765491046549,-904.49,0.00012876,2]
[398285412,1765491046558,-562.55,0.00012876,2]
[398285413,1765491046568,-2576.59,0.00012876,2]
[398285414,1765491046578,-3480.09,0.00012876,2]
[398285415,1765491046587,-500.0,0.00012876,2]
[398285416,1765491046598,-500.0,0.00012876,2]
[398285417,1765491046607,-500.0,0.00012876,2]
[398285418,1765491046617,-500.0,0.00012876,2]
[398285419,1765491046627,-500.0,0.00012876,2]
[398285420,1765491046637,-1279.59,0.00012876,2]
[398285421,1765491046647,-500.0,0.00012876,2]
[398285422,1765491046657,-500.0,0.00012876,2]
[398285423,1765491046667,-500.0,0.00012876,2]
[398285424,1765491046676,-500.0,0.00012876,2]
[398285425,1765491046686,-1023.09,0.00012876,2]
[398285426,1765491046695,-4044.64,0.00012876,2]
[398285427,1765491046705,-500.0,0.00012876,2]
[398285428,1765491046714,-1327.32,0.00012876,2]
[398285429,1765491046724,-500.0,0.00012876,2]
[398285430,1765491046733,-3418.32,0.00012876,2]
[398285431,1765491046743,-500.0,0.00012876,2]
[398285432,1765491046752,-500.0,0.00012876,2]
[398285433,1765491046767,-500.0,0.00012876,2]
[398285434,1765491046785,-500.0,0.00012876,2]
[398285435,1765491046795,-500.0,0.00012876,2]
[398285436,1765491046805,-2329.0,0.00012876,2]
[398285437,1765491046814,-500.0,0.00012876,2]
[398285438,1765491046824,-2168.76,0.00012876,2]
[398285439,1765491046834,-500.0,0.00012876,2]
[398285440,1765491046844,-1724.75,0.00012876,2]
[398285441,1765491046854,-5564.14,0.00012876,2]
[398285442,1765491046864,-500.0,0.00012876,2]
[398285443,1765491046873,-500.0,0.00012876,2]
[398285444,1765491046882,-626.06,0.00012876,2]
[398285445,1765491046893,-3574.77,0.00012876,2]
[398285446,1765491046903,-500.0,0.00012876,2]
[398285447,1765491046912,-1021.25,0.00012876,2]
[398285448,1765491046921,-500.0,0.00012876,2]
[398285449,1765491046931,-1995.09,0.00012876,2]
[398285450,1765491046940,-500.0,0.00012876,2]
[398285451,1765491046950,-500.0,0.00012876,2]
[398285452,1765491046959,-500.0,0.00012876,2]
[398285453,1765491046969,-1168.52,0.00012876,2]
[398285454,1765491046978,-500.0,0.00012876,2]
[398285455,1765491046988,-4186.9,0.00012876,2]
[398285456,1765491046997,-1699.31,0.00012876,2]
[398285457,1765491047007,-2136.82,0.00012876,2]
[398285458,1765491047017,-500.0,0.00012876,2]
[398285459,1765491047027,-500.0,0.00012876,2]
[398285460,1765491047036,-500.0,0.00012876,2]
[398285461,1765491047045,-822.4,0.00012876,2]
[398285462,1765491047055,-500.0,0.00012876,2]
[398285463,1765491047064,-500.0,0.00012876,2]
[398285464,1765491047073,-1115.45,0.00012876,2]
[398285465,1765491047082,-500.0,0.00012876,2]
[398285466,1765491047092,-3155.66,0.00012876,2]
[398285467,1765491047101,-523.26,0.00012876,2]
[398285468,1765491047110,-500.0,0.00012876,2]
[398285469,1765491047120,-595.27,0.00012876,2]
[398285470,1765491047129,-500.0,0.00012876,2]
[398285471,1765491047138,-3166.48,0.00012876,2]
[398285472,1765491047147,-715.29,0.00012876,2]
[398285473,1765491047157,-2155.6,0.00012876,2]
[398285474,1765491047167,-944.25,0.00012876,2]
[398285475,1765491047176,-1775.18,0.00012876,2]
[398285476,1765491047185,-1785.91,0.00012876,2]
[398285477,1765491047195,-500.0,0.00012876,2]
[398285478,1765491047204,-23114.45,0.00012876,2]
[398285479,1765491047214,-500.0,0.00012876,2]
[398285480,1765491047223,-1411.75,0.00012876,2]
[398285481,1765491047232,-4516.98,0.00012876,2]
[398285482,1765491047242,-500.0,0.00012876,2]
[398285483,1765491047252,-913.98,0.00012876,2]
[398285484,1765491047261,-1529.69,0.00012876,2]
[398285485,1765491047271,-5237.79,0.00012876,2]
[398285486,1765491047280,-28377.33,0.00012876,2]
[398285487,1765491047289,-500.0,0.00012876,2]
[398285488,1765491047299,-500.0,0.00012876,2]
[398285489,1765491047308,-500.0,0.00012876,2]
[398285490,1765491047318,-643.85,0.00012876,2]
[398285491,1765491047327,-500.0,0.00012877,2]
[398285492,1765491047338,-151.0,0.000129,2]
[398285493,1765491047347,-151.0,0.000129,2]
[398285494,1765491047357,-562.0,0.0001298,2]
[398285495,1765491047367,-645.0,0.0001298,2]
[398285496,1765491047377,-445.0,0.0001298,2]
[398285497,1765491047387,-500.0,0.0001298,2]
[398285498,1765491047396,-561.0,0.0001298,2]
[398285499,1765491047406,-38248.04514631,0.00013,2]
[398285500,1765491047415,-500.0,0.00013093,2]
[398285501,1765491047425,-204.0,0.00013113,2]
[398285502,1765491047435,-587.0,0.00013113,2]
[398285503,1765491047445,-900.0,0.00013115,2]
[398285504,1765491047455,-562.0,0.00013117,2]
[398285505,1765491047466,-645.0,0.00013117,2]
[398285506,1765491047475,-368.60523676,0.00013117,2]
[398285507,1765491047486,-445.0,0.00013117,2]
[398285508,1765491047496,-561.0,0.00013117,2]
[398285509,1765491047505,-2351.0,0.00013135,2]
[398285510,1765491047515,-500.0,0.0001314,2]
[398285511,1765491047524,-500.0,0.00013141,2]
[398285512,1765491047534,-151.0,0.00013144,2]
[398285513,1765491047543,-500.0,0.0001315,2]
[398285514,1765491047553,-500.0,0.0001315,2]
[398285515,1765491047563,-500.0,0.0001315,2]
[398285516,1765491047572,-500.0,0.0001315,2]
[398285517,1765491047582,-500.0,0.0001315,2]
[398285518,1765491047591,-1015.14,0.0001315,2]
[398285519,1765491047600,-1176.87,0.0001315,2]
[398285520,1765491047610,-654.1,0.0001315,2]
[398285521,1765491047620,-500.0,0.0001315,2]
[398285522,1765491047629,-500.0,0.0001315,2]
[398285523,1765491047639,-520.76,0.0001315,2]
[398285524,1765491047696,-500.0,0.0001315,2]
[398285525,1765491047706,-500.0,0.0001315,2]
[398285526,1765491047715,-683.14,0.0001315,2]
[398285527,1765491047725,-500.0,0.0001315,2]
[398285528,1765491047735,-500.0,0.0001315,2]
[398285529,1765491047744,-500.0,0.0001315,2]
[398285530,1765491047754,-500.0,0.0001315,2]
[398285531,1765491047767,-500.0,0.0001315,2]
[398285532,1765491047776,-500.0,0.0001315,2]
[398285533,1765491047786,-500.0,0.0001315,2]
[398285534,1765491047795,-537.79,0.0001315,2]
[398285535,1765491047806,-500.0,0.0001315,2]
[398285536,1765491047816,-500.0,0.0001315,2]
[398285537,1765491047825,-153.3093186,0.0001315,2]
[398285538,1765491047834,-500.0,0.0001315,2]
[398285539,1765491047846,-500.0,0.0001315,2]
[398285540,1765491047855,-500.0,0.0001315,2]
[398285541,1765491047865,-500.0,0.0001315,2]
[398285542,1765491047875,-500.0,0.0001315,2]
[398285543,1765491047884,-500.0,0.0001315,2]
[398285544,1765491047893,-500.0,0.0001315,2]
[398285545,1765491047902,-500.0,0.0001315,2]
[398285546,1765491047911,-500.0,0.0001315,2]
[398285547,1765491047922,-500.0,0.0001315,2]
[398285548,1765491047931,-500.0,0.0001315,2]
[398285549,1765491047941,-578.67,0.0001315,2]
[398285550,1765491047950,-500.0,0.0001315,2]
[398285551,1765491047960,-500.0,0.0001315,2]
[398285552,1765491047969,-500.0,0.0001315,2]
[398285553,1765491047978,-540.56067064,0.0001315,2]
[398285554,1765491047987,-587.07,0.0001315,2]